fUSD/lending_fUSD_20240720
["ID","MTS","AMOUNT","RATE_DAILY","PERIOD"]
[332702047,1721454687422,-500.0,0.00033972,14]
[332702048,1721454687432,-907.05,0.00033972,14]
[332702049,1721454687443,-500.0,0.00033972,14]
[332702050,1721454687453,-841.04,0.00033972,14]
[332702051,1721454687464,-238.63046378,0.00033972,14]
[332702052,1721454687473,-500.0,0.00033972,14]
[332702053,1721454687483,-553.8,0.00033972,14]
[332702054,1721454687492,-500.0,0.00033972,14]
[332702055,1721454687501,-809.53,0.00033972,14]
[332702056,1721454687511,-500.0,0.00033972,14]
[332702057,1721454687520,-500.0,0.00033972,14]
[332702058,1721454687532,-975.87,0.00033972,14]
[332702059,1721454687543,-637.92,0.00033972,14]
[332702060,1721454687555,-500.0,0.00033972,14]
[332702061,1721454687567,-568.56,0.00033972,14]
[332702062,1721454687576,-245.26358556,0.00033972,14]
[332702063,1721454687587,-701.51,0.00033972,14]
[332702064,1721454687597,-500.0,0.00033972,14]
[332702065,1721454687609,-500.0,0.00033972,14]
[332702066,1721454687621,-462.3812934,0.00033972,14]
[332702067,1721454687632,-553.55,0.00033972,14]
[332702068,1721454687644,-500.0,0.00033972,14]
[332702069,1721454687656,-616.47950641,0.00033972,14]
[332702070,1721454687666,-616.55,0.00033972,14]
[332702071,1721454687676,-678.89,0.00033972,14]
[332702072,1721454687687,-500.0,0.00033972,14]
[332702073,1721454687698,-519.86,0.00033972,14]
[332702074,1721454687707,-500.0,0.00033972,14]
[332702075,1721454687718,-1304.01,0.00033972,14]
[332702076,1721454687729,-860.37,0.00033972,14]
[332702077,1721454687739,-344.15,0.00033972,14]
[332702078,1721454687748,-500.0,0.00033972,14]
[332702079,1721454687757,-585.34,0.00033972,14]
[332702080,1721454687766,-500.0,0.00033972,14]
[332702081,1721454687775,-367.77725637,0.00033972,14]
[332702082,1721454687784,-500.0,0.00033972,14]
[332702083,1721454687794,-815.33,0.00033972,14]
[332702084,1721454687803,-500.0,0.00033972,14]
[332702085,1721454687812,-1441.53,0.00033972,14]
[332702086,1721454687823,-500.0,0.00033972,14]
[332702087,1721454687833,-698.02,0.00033972,14]
[332702088,1721454687843,-520.36131028,0.00033972,14]
[332702089,1721454687854,-500.0,0.00033972,14]
[332702090,1721454687864,-1388.48,0.00033972,14]
[332702091,1721454687873,-500.0,0.00033972,14]
[332702092,1721454687883,-1150.04,0.00033972,14]
[332702093,1721454687892,-500.0,0.00033972,14]
[332702094,1721454687902,-635.70396347,0.00033972,14]
[332702095,1721454687913,-500.0,0.00033972,14]
[332702096,1721454687922,-500.0,0.00033972,14]
[332702097,1721454687932,-1233.13,0.00033972,7]
[332702098,1721454687941,-500.0,0.00033972,14]
[332702099,1721454687950,-500.0,0.00033972,14]
[332702100,1721454687959,-916.05,0.00033972,14]
[332702101,1721454687969,-500.0,0.00033972,14]
[332702102,1721454687979,-755.96,0.00033972,14]
[332702103,1721454687989,-500.0,0.00033972,14]
[332702104,1721454687998,-879.07,0.00033972,14]
[332702105,1721454688007,-802.19,0.00033972,14]
[332702106,1721454688020,-1258.1,0.00033972,14]
[332702107,1721454688031,-721.76,0.00033972,14]
[332702108,1721454688041,-500.0,0.00033972,14]
[332702109,1721454688051,-399.06,0.00033972,14]
[332702110,1721454688060,-500.0,0.00033972,14]
[332702111,1721454688070,-500.0,0.00033972,14]
[332702112,1721454688079,-575.57,0.00033972,14]
[332702113,1721454688089,-715.7844092,0.00033972,14]
[332702114,1721454688638,-791.9655908,0.00033972,14]
[332702115,1721454688648,-945.44,0.00033972,14]
[332702116,1721454688657,-173.12522328,0.00033972,14]
[332702117,1721454688667,-500.0,0.00033972,14]
[332702118,1721454688676,-956.9,0.00033972,14]
[332702119,1721454688685,-500.0,0.00033972,14]
[332702120,1721454688696,-500.0,0.00033972,14]
[332702121,1721454688705,-2294.03,0.00033972,14]
[332702122,1721454688715,-4051.96,0.00033972,14]
[332702123,1721454688725,-1855.61,0.00033972,14]
[332702124,1721454688734,-500.0,0.00033972,14]
[332702125,1721454688744,-691.44,0.00033972,14]
[332702126,1721454688753,-500.0,0.00033972,14]
[332702127,1721454688763,-626.18,0.00033972,14]
[332702128,1721454688772,-500.0,0.00033972,14]
[332702129,1721454688781,-500.0,0.00033972,14]
[332702130,1721454688791,-3548.1,0.00033972,14]
[332702131,1721454688801,-2137.09,0.00033972,14]
[332702132,1721454688810,-509.47,0.00033972,14]
[332702133,1721454688820,-2204.46,0.00033972,14]
[332702134,1721454688829,-953.73,0.00033972,14]
[332702135,1721454688839,-1125.08,0.00033972,14]
[332702136,1721454688848,-1011.8,0.00033972,14]
[332702137,1721454688859,-908.27,0.00033972,14]
[332702138,1721454688870,-1227.28,0.00033972,14]
[332702139,1721454688880,-8132.78,0.00033972,14]
[332702140,1721454688890,-2035.89,0.00033972,14]
[332702141,1721454688900,-614.64,0.00033972,14]
[332702142,1721454688910,-575.16,0.00033972,14]
[332702143,1721454688919,-487.84172755,0.00033972,14]
[332702144,1721454688931,-998.65827245,0.00033972,14]
[332702145,1721454688941,-500.0,0.00033972,14]
[332702146,1721454688951,-500.0,0.00033972,14]
[332702147,1721454688960,-1562.52,0.00033972,14]
[332702148,1721454688970,-2099.47,0.00033972,14]
[332702149,1721454688979,-1138.31,0.00033972,14]
[332702150,1721454688988,-500.0,0.00033972,14]
[332702151,1721454688998,-4357.79,0.00033972,14]
[332702152,1721454689007,-2011.54,0.00033972,14]
[332702153,1721454689016,-2892.84,0.00033972,14]
[332702154,1721454689026,-500.0,0.00033972,14]
[332702155,1721454689035,-1589.17,0.00033972,14]
[332702156,1721454689045,-1172.33,0.00033972,14]
[332702157,1721454689123,-500.0,0.00033972,14]
[332702158,1721454689133,-1375.07,0.00033972,14]
[332702159,1721454689142,-1834.57,0.00033972,14]
[332702160,1721454689151,-13120.15,0.00033972,14]
[332702161,1721454689160,-500.0,0.00033972,14]
[332702162,1721454689169,-4131.25,0.00033972,14]
[332702163,1721454689178,-1248.89,0.00033972,14]
[332702164,1721454689187,-1789.82,0.00033972,14]
[332702165,1721454689195,-701.08,0.00033972,14]
[332702166,1721454689204,-1061.38,0.00033972,14]
[332702167,1721454689213,-2389.87,0.00033972,14]
[332702168,1721454689223,-2482.06,0.00033972,14]
[332702169,1721454689231,-775.2,0.00033972,14]
[332702170,1721454689240,-816.59,0.00033972,14]
[332702171,1721454689250,-655.03,0.00033972,14]
[332702172,1721454689259,-500.0,0.00033972,14]
[332702173,1721454689268,-10337.24,0.00033972,14]
[332702174,1721454689276,-500.0,0.00033972,14]
[332702175,1721454689286,-500.0,0.00033972,14]
[332702176,1721454689295,-2400.68,0.00033972,14]
[332702177,1721454689304,-2903.43,0.00033972,14]
[332702178,1721454689314,-376.05829943,0.00033972,14]
[332702179,1721454689325,-500.0,0.00033972,14]
[332702180,1721454689334,-870.8393222,0.00033972,14]
[332702181,1721454689347,-0.8906778,0.00033972,14]
[332702182,1721454689357,-537.49,0.00033972,14]
[332702183,1721454689367,-1472.55438325,0.00033972,14]
[332702184,1721454690011,-10000.0,0.00016694,2]
[332702185,1721454690021,-492.57095377,0.00031885,4]
[332702186,1721454690030,-1263.49,0.00032876,14]
[332702187,1721454690040,-751.29,0.00032876,14]
[332702188,1721454690050,-1263.49,0.0003315,14]
[332702189,1721454690060,-751.29,0.0003315,14]
[332702190,1721454690069,-1263.49,0.00033424,14]
[332702191,1721454690079,-500.0,0.00033698,14]
[332702192,1721454690088,-1967.62561675,0.00033972,14]
[332702193,1721454690098,-658.05,0.00033972,14]
[332702194,1721454690108,-500.0,0.00033972,14]
[332702195,1721454690118,-800.38,0.00033972,14]
[332702196,1721454690128,-529.84,0.00033972,14]
[332702197,1721454690137,-789.85,0.00033972,14]
[332702198,1721454690147,-5938.68,0.00033972,14]
[332702199,1721454690156,-848.04,0.00033972,14]
[332702200,1721454690165,-500.0,0.00033972,14]
[332702201,1721454690175,-867.86,0.00033972,14]
[332702202,1721454690184,-735.16,0.00033972,14]
[332702203,1721454690193,-337.02074313,0.00033972,14]
[332702204,1721454690203,-1292.82,0.00033972,14]
[332702205,1721454690212,-4015.29,0.00033972,14]
[332702206,1721454690221,-500.0,0.00033972,14]
[332702207,1721454690230,-500.0,0.00033972,14]
[332702208,1721454690240,-5853.88,0.00033972,14]
[332702209,1721454690249,-500.0,0.00033972,14]
[332702210,1721454690258,-531.09,0.00033972,14]
[332702211,1721454690269,-2357.13,0.00033972,14]
[332702212,1721454690279,-669.25,0.00033972,14]
[332702213,1721454690290,-2902.56,0.00033972,14]
[332702214,1721454690299,-500.0,0.00033972,14]
[332702215,1721454690309,-353.1718505,0.00033972,14]
[332702216,1721454690321,-5173.83,0.00033972,14]
[332702217,1721454690331,-510.0,0.00033972,14]
[332702218,1721454690340,-527.63,0.00033972,14]
[332702219,1721454690349,-4171.78,0.00033972,14]
[332702220,1721454690360,-500.0,0.00033972,14]
[332702221,1721454690369,-1007.16,0.00033972,14]
[332702222,1721454690380,-500.0,0.00033972,14]
[332702223,1721454690393,-1175.99,0.00033972,14]
[332702224,1721454690404,-1086.49,0.00033972,14]
[332702225,1721454690414,-500.0,0.00033972,14]
[332702226,1721454690424,-5650.95,0.00033972,14]
[332702227,1721454690434,-500.0,0.00033972,14]
[332702228,1721454690446,-1142.16,0.00033972,14]
[332702229,1721454690457,-1786.18,0.00033972,14]
[332702230,1721454690467,-2100.12,0.00033972,14]
[332702231,1721454690476,-1501.2,0.00033972,14]
[332702232,1721454690485,-1938.55,0.00033972,14]
[332702233,1721454690495,-500.0,0.00033972,14]
[332702234,1721454690505,-500.0,0.00033972,14]
[332702235,1721454690514,-2226.11,0.00033972,14]
[332702236,1721454690525,-1032.15,0.00033972,14]
[332702237,1721454690537,-521.36,0.00033972,14]
[332702238,1721454690547,-1134.15,0.00033972,14]
[332702239,1721454690556,-500.0,0.00033972,14]
[332702240,1721454690567,-1135.66,0.00033972,14]
[332702241,1721454690575,-2533.76,0.00033972,14]
[332702242,1721454690586,-1145.69,0.00033972,14]
[332702243,1721454690596,-500.0,0.00033972,14]
[332702244,1721454690607,-2293.46,0.00033972,14]
[332702245,1721454690617,-500.0,0.00033972,14]
[332702246,1721454690627,-1398.34,0.00033972,14]
[332702247,1721454690637,-500.0,0.00033972,14]
[332702248,1721454690647,-500.0,0.00033972,14]
[332702249,1721454690657,-500.0,0.00033972,14]
[332702250,1721454690668,-500.0,0.00033972,14]
[332702251,1721454690679,-737.88,0.00033972,14]
[332702252,1721454690690,-2614.44,0.00033972,14]
[332702253,1721454690700,-5859.34,0.00033972,14]
[332702254,1721454690711,-1642.7,0.00033972,14]
[332702255,1721454690723,-1741.27,0.00033972,14]
[332702256,1721454690734,-502.17747555,0.00033972,14]
[332702257,1721454690744,-2773.2,0.00033972,14]
[332702258,1721454690756,-3787.44,0.00033972,14]
[332702259,1721454690768,-1211.76,0.00033972,14]
[332702260,1721454690778,-500.0,0.00033972,14]
[332702261,1721454690787,-1228.2,0.00033972,14]
[332702262,1721454690797,-3015.83,0.00033972,14]
[332702263,1721454690806,-1839.95,0.00033972,14]
[332702264,1721454690815,-500.0,0.00033972,14]
[332702265,1721454690824,-4715.96,0.00033972,14]
[332702266,1721454690832,-1400.64,0.00033972,14]
[332702267,1721454690841,-1206.1,0.00033972,14]
[332702268,1721454690850,-4676.71,0.00033972,14]
[332702269,1721454690859,-500.0,0.00033972,14]
[332702270,1721454690870,-1817.98,0.00033972,14]
[332702271,1721454690879,-2336.53,0.00033972,14]
[332702272,1721454690888,-500.0,0.00033972,14]
[332702273,1721454690897,-500.0,0.00033972,14]
[332702274,1721454690906,-548.56,0.00033972,14]
[332702275,1721454690916,-973.73,0.00033972,14]
[332702276,1721454690925,-500.0,0.00033972,14]
[332702277,1721454690934,-500.0,0.00033972,14]
[332702278,1721454690943,-1677.83,0.00033972,14]
[332702279,1721454690952,-500.0,0.00033972,14]
[332702280,1721454690961,-854.29,0.00033972,14]
[332702281,1721454690971,-2035.71,0.00033972,14]
[332702282,1721454690979,-6108.97,0.00033972,14]
[332702283,1721454690988,-847.09,0.00033972,14]
[332702284,1721454690997,-1731.46,0.00033972,14]
[332702285,1721454691006,-1464.29,0.00033972,14]
[332702286,1721454691016,-1500.0,0.00033972,14]
[332702287,1721454691025,-500.0,0.00033972,14]
[332702288,1721454691034,-1151.43,0.00033972,14]
[332702289,1721454691043,-3051.07,0.00033972,14]
[332702290,1721454691052,-500.0,0.00033972,14]
[332702291,1721454691061,-500.0,0.00033972,14]
[332702292,1721454691070,-1584.59,0.00033972,14]
[332702293,1721454691078,-500.0,0.00033972,14]
[332702294,1721454691088,-500.0,0.00033972,14]
[332702295,1721454691097,-849.3,0.00033972,14]
[332702296,1721454691106,-500.0,0.00033972,14]
[332702297,1721454691115,-1810.06,0.00033972,14]
[332702298,1721454691124,-2302.64,0.00033972,14]
[332702299,1721454691133,-1313.44,0.00033972,14]
[332702300,1721454691142,-1741.63,0.00033972,14]
[332702301,1721454691152,-500.0,0.00033972,14]
[332702302,1721454691161,-1800.63,0.00033972,14]
[332702303,1721454691170,-1714.61,0.00033972,14]
[332702304,1721454691181,-765.66,0.00033972,14]
[332702305,1721454691192,-590.13,0.00033972,14]
[332702306,1721454691203,-500.0,0.00033972,14]
[332702307,1721454691214,-2127.68,0.00033972,14]
[332702308,1721454691223,-1128.24,0.00033972,14]
[332702309,1721454691232,-2564.99,0.00033972,14]
[332702310,1721454691241,-500.0,0.00033972,14]
[332702311,1721454691250,-500.0,0.00033972,14]
[332702312,1721454691259,-1400.32,0.00033972,14]
[332702313,1721454691267,-4037.22,0.00033972,14]
[332702314,1721454691276,-3316.95,0.00033972,14]
[332702315,1721454691285,-2915.67,0.00033972,14]
[332702316,1721454691295,-5225.32,0.00033972,14]
[332702317,1721454691304,-520.45,0.00033972,14]
[332702318,1721454691315,-1197.24,0.00033972,14]
[332702319,1721454691326,-500.0,0.00033972,14]
[332702320,1721454691336,-500.0,0.00033972,14]
[332702321,1721454691347,-1278.14,0.00033972,14]
[332702322,1721454691357,-627.4,0.00033972,14]
[332702323,1721454691366,-1021.45,0.00033972,14]
[332702324,1721454691375,-3741.74,0.00033972,14]
[332702325,1721454691385,-1542.96,0.00033972,14]
[332702326,1721454691394,-1183.46,0.00033972,14]
[332702327,1721454691404,-500.0,0.00033972,14]
[332702328,1721454691413,-3179.57,0.00033972,14]
[332702329,1721454691422,-2362.42,0.00033972,14]
[332702330,1721454691431,-500.0,0.00033972,14]
[332702331,1721454691440,-580.26,0.00033972,14]
[332702332,1721454691449,-1759.26,0.00033972,14]
[332702333,1721454691458,-500.0,0.00033972,14]
[332702334,1721454691467,-500.0,0.00033972,14]
[332702335,1721454691476,-2073.67,0.00033972,14]
[332702336,1721454691486,-894.23,0.00033972,14]
[332702337,1721454691495,-597.84,0.00033972,14]
[332702338,1721454691504,-1991.91,0.00033972,14]
[332702339,1721454691513,-526.0,0.00033972,14]
[332702340,1721454691522,-500.0,0.00033972,14]
[332702341,1721454691532,-508.99,0.00033972,14]
[332702342,1721454691541,-794.95,0.00033972,14]
[332702343,1721454691550,-2931.11,0.00033972,14]
[332702344,1721454691559,-1061.03,0.00033972,14]
[332702345,1721454691568,-500.0,0.00033972,14]
[332702346,1721454691577,-3299.64,0.00033972,14]
[332702347,1721454691587,-500.0,0.00033972,14]
[332702348,1721454691596,-553.59,0.00033972,14]
[332702349,1721454691605,-2732.87,0.00033972,14]
[332702350,1721454691614,-3412.35,0.00033972,14]
[332702351,1721454691623,-655.9,0.00033972,14]
[332702352,1721454691632,-1247.29,0.00033972,14]
[332702353,1721454691641,-603.32,0.00033972,14]
[332702354,1721454691650,-3262.71,0.00033972,14]
[332702355,1721454691659,-500.0,0.00033972,14]
[332702356,1721454691668,-1103.45,0.00033972,14]
[332702357,1721454691677,-500.0,0.00033972,14]
[332702358,1721454691686,-500.0,0.00033972,14]
[332702359,1721454691695,-500.0,0.00033972,14]
[332702360,1721454691704,-5572.1,0.00033972,14]
[332702361,1721454691713,-500.0,0.00033972,14]
[332702362,1721454691722,-500.0,0.00033972,14]
[332702363,1721454691732,-1434.56,0.00033972,14]
[332702364,1721454691743,-637.98,0.00033972,14]
[332702365,1721454691753,-919.87,0.00033972,14]
[332702366,1721454691762,-1664.52,0.00033972,14]
[332702367,1721454691771,-3644.07,0.00033972,14]
[332702368,1721454691780,-1022.26,0.00033972,14]
[332702369,1721454691789,-500.0,0.00033972,14]
[332702370,1721454691799,-779.94,0.00033972,2]
[332702371,1721454691808,-1034.04,0.00033972,14]
[332702372,1721454691818,-1720.23,0.00033972,14]
[332702373,1721454691827,-1856.75,0.00033972,14]
[332702374,1721454691836,-500.0,0.00033972,14]
[332702375,1721454691845,-754.77,0.00033972,14]
[332702376,1721454691855,-500.0,0.00033972,14]
[332702377,1721454691864,-4684.73,0.00033972,14]
[332702378,1721454691874,-1693.75,0.00033972,14]
[332702379,1721454691883,-7474.52,0.00033972,14]
[332702380,1721454691893,-657.06,0.00033972,14]
[332702381,1721454691902,-500.0,0.00033972,14]
[332702382,1721454691911,-1870.4,0.00033972,14]
[332702383,1721454691921,-1161.77,0.00033972,14]
[332702384,1721454691930,-2152.41,0.00033972,14]
[332702385,1721454691939,-500.0,0.00033972,14]
[332702386,1721454691948,-937.28,0.00033972,14]
[332702387,1721454691957,-500.0,0.00033972,14]
[332702388,1721454691967,-701.8,0.00033972,14]
[332702389,1721454691977,-1075.9,0.00033972,14]
[332702390,1721454691985,-814.24,0.00033972,14]
[332702391,1721454691995,-2205.62,0.00033972,14]
[332702392,1721454692004,-500.0,0.00033972,14]
[332702393,1721454692013,-500.0,0.00033972,14]
[332702394,1721454692022,-1321.01,0.00033972,14]
[332702395,1721454692031,-500.0,0.00033972,14]
[332702396,1721454692040,-726.47,0.00033972,14]
[332702397,1721454692049,-2223.29,0.00033972,14]
[332702398,1721454692059,-1940.5,0.00033972,14]
[332702399,1721454692068,-500.0,0.00033972,14]
[332702400,1721454692077,-2571.47,0.00033972,14]
[332702401,1721454692087,-618.24,0.00033972,14]
[332702402,1721454692096,-503.1,0.00033972,14]
[332702403,1721454692106,-1012.39,0.00033972,14]
[332702404,1721454692116,-500.0,0.00033972,14]
[332702405,1721454692126,-972.87573645,0.00034014,30]
[332702406,1721454692135,-151.56800968,0.00034018,7]
[332702407,1721454692144,-1009.64,0.000341,2]
[332702408,1721454692153,-305.44,0.000341,2]
[332702409,1721454692163,-153.62,0.000341,31]
[332702410,1721454692172,-153.62,0.000341,31]
[332702411,1721454692181,-153.62,0.000341,31]
[332702412,1721454692190,-153.62,0.000341,31]
[332702413,1721454692199,-153.62,0.000341,31]
[332702414,1721454692208,-153.62,0.000341,31]
[332702415,1721454692217,-153.62,0.000341,31]
[332702416,1721454692226,-153.62,0.000341,31]
[332702417,1721454692235,-153.62,0.000341,31]
[332702418,1721454692244,-153.62,0.000341,31]
[332702419,1721454692254,-153.62,0.000341,31]
[332702420,1721454692263,-153.62,0.000341,31]
[332702421,1721454692272,-153.62,0.000341,31]
[332702422,1721454692281,-153.62,0.000341,31]
[332702423,1721454692290,-153.62,0.000341,31]
[332702424,1721454692299,-153.62,0.000341,31]
[332702425,1721454692308,-179.65590807,0.000342,15]
[332702426,1721454692320,-500.0,0.00034243,10]
[332702427,1721454692329,-500.0,0.00034244,10]
[332702428,1721454692338,-3856.31434642,0.00034246,2]
[332702429,1721454692347,-40657.35815047,0.00034246,11]
[332702430,1721454692359,-500.0,0.00034246,14]
[332702431,1721454692368,-500.0,0.00034246,14]
[332702432,1721454692377,-500.0,0.00034246,14]
[332702433,1721454692386,-500.0,0.00034246,14]
[332702434,1721454692397,-500.0,0.00034246,14]
[332702435,1721454692407,-500.0,0.00034246,14]
[332702436,1721454692415,-540.72,0.00034246,14]
[332702437,1721454692424,-500.0,0.00034246,14]
[332702438,1721454692434,-500.0,0.00034246,14]
[332702439,1721454692443,-626.62,0.00034246,14]
[332702440,1721454692451,-843.22,0.00034246,14]
[332702441,1721454692460,-590.67,0.00034246,14]
[332702442,1721454692469,-581.23,0.00034246,14]
[332702443,1721454692479,-514.12,0.00034246,14]
[332702444,1721454692489,-500.0,0.00034246,14]
[332702445,1721454692498,-637.85,0.00034246,14]
[332702446,1721454692508,-767.04,0.00034246,14]
[332702447,1721454692518,-500.0,0.00034246,14]
[332702448,1721454692530,-500.0,0.00034246,14]
[332702449,1721454692539,-500.0,0.00034246,14]
[332702450,1721454692549,-500.0,0.00034246,14]
[332702451,1721454692559,-500.0,0.00034246,14]
[332702452,1721454692568,-500.0,0.00034246,14]
[332702453,1721454692578,-607.5,0.00034246,14]
[332702454,1721454692587,-694.38,0.00034246,14]
[332702455,1721454692598,-500.0,0.00034246,14]
[332702456,1721454692610,-553.42415189,0.00034246,14]
[332702457,1721454692619,-500.0,0.00034246,14]
[332702458,1721454692630,-500.0,0.00034246,14]
[332702459,1721454692640,-500.0,0.00034246,14]
[332702460,1721454692649,-500.0,0.00034246,14]
[332702461,1721454692658,-500.0,0.00034246,14]
[332702462,1721454692668,-500.0,0.00034246,14]
[332702463,1721454692677,-500.0,0.00034246,14]
[332702464,1721454692687,-500.0,0.00034246,14]
[332702465,1721454692696,-500.0,0.00034246,14]
[332702466,1721454692705,-500.0,0.00034246,14]
[332702467,1721454692715,-530.52,0.00034246,14]
[332702468,1721454692724,-500.0,0.00034246,14]
[332702469,1721454692733,-500.0,0.00034246,14]
[332702470,1721454692742,-500.0,0.00034246,14]
[332702471,1721454692752,-503.81,0.00034246,14]
[332702472,1721454692761,-422.55977691,0.00034246,14]
[332702473,1721454692770,-536.19,0.00034246,14]
[332702474,1721454692781,-500.0,0.00034246,14]
[332702475,1721454692791,-500.0,0.00034246,14]
[332702476,1721454692800,-500.0,0.00034246,14]
[332702477,1721454692809,-500.0,0.00034246,14]
[332702478,1721454692819,-500.0,0.00034246,14]
[332702479,1721454692828,-500.0,0.00034246,14]
[332702480,1721454692837,-500.0,0.00034246,14]
[332702481,1721454692847,-602.73,0.00034246,14]
[332702482,1721454692857,-500.0,0.00034246,14]
[332702483,1721454692866,-694.11,0.00034246,14]
[332702484,1721454692875,-976.13,0.00034246,14]
[332702485,1721454692884,-586.56,0.00034246,14]
[332702486,1721454692893,-500.0,0.00034246,14]
[332702487,1721454692904,-956.44,0.00034246,14]
[332702488,1721454692913,-500.0,0.00034246,14]
[332702489,1721454692923,-546.24,0.00034246,14]
[332702490,1721454692932,-500.0,0.00034246,14]
[332702491,1721454692942,-597.63,0.00034246,14]
[332702492,1721454692953,-500.0,0.00034246,14]
[332702493,1721454692963,-500.0,0.00034246,14]
[332702494,1721454692972,-230.75620514,0.00034246,14]
[332702495,1721454692983,-578.97,0.00034246,14]
[332702496,1721454692993,-500.0,0.00034246,14]
[332702497,1721454693002,-500.0,0.00034246,14]
[332702498,1721454693011,-500.0,0.00034246,14]
[332702499,1721454693021,-500.0,0.00034246,14]
[332702500,1721454693030,-500.0,0.00034246,14]
[332702501,1721454693185,-500.0,0.00034246,14]
[332702502,1721454693198,-1139.65,0.00034246,14]
[332702503,1721454693208,-500.0,0.00034246,14]
[332702504,1721454693217,-594.81,0.00034246,14]
[332702505,1721454693227,-1160.02,0.00034246,14]
[332702506,1721454693237,-533.4,0.00034246,14]
[332702507,1721454693247,-1635.03,0.00034246,14]
[332702508,1721454693256,-500.0,0.00034246,14]
[332702509,1721454693265,-500.0,0.00034246,14]
[332702510,1721454693275,-874.14,0.00034246,14]
[332702511,1721454693284,-500.0,0.00034246,14]
[332702512,1721454693293,-500.0,0.00034246,14]
[332702513,1721454693302,-901.37,0.00034246,14]
[332702514,1721454693312,-829.22,0.00034246,14]
[332702515,1721454693325,-500.0,0.00034246,14]
[332702516,1721454693335,-500.0,0.00034246,14]
[332702517,1721454693344,-1308.18,0.00034246,14]
[332702518,1721454693355,-843.1,0.00034246,14]
[332702519,1721454693364,-500.0,0.00034246,14]
[332702520,1721454693374,-683.53,0.00034246,14]
[332702521,1721454693384,-876.85,0.00034246,14]
[332702522,1721454693393,-935.95,0.00034246,14]
[332702523,1721454693403,-745.54,0.00034246,14]
[332702524,1721454693413,-500.0,0.00034246,14]
[332702525,1721454693422,-636.69,0.00034246,14]
[332702526,1721454693431,-500.0,0.00034246,14]
[332702527,1721454693441,-307.69237904,0.00034246,14]
[332702528,1721454693451,-500.0,0.00034246,14]
[332702529,1721454693460,-898.66,0.00034246,14]
[332702530,1721454693469,-769.28,0.00034246,14]
[332702531,1721454693479,-1079.35,0.00034246,14]
[332702532,1721454693488,-710.01,0.00034246,14]
[332702533,1721454693498,-500.0,0.00034246,14]
[332702534,1721454693507,-500.0,0.00034246,14]
[332702535,1721454693517,-1222.45,0.00034246,14]
[332702536,1721454693526,-1172.59,0.00034246,14]
[332702537,1721454693536,-579.49,0.00034246,14]
[332702538,1721454693545,-500.0,0.00034246,14]
[332702539,1721454693554,-1056.79,0.00034246,14]
[332702540,1721454693564,-807.94,0.00034246,14]
[332702541,1721454693574,-1358.25,0.00034246,14]
[332702542,1721454693583,-500.0,0.00034246,14]
[332702543,1721454693592,-1130.8,0.00034246,14]
[332702544,1721454693601,-870.92,0.00034246,14]
[332702545,1721454693614,-500.0,0.00034246,14]
[332702546,1721454693623,-500.0,0.00034246,14]